[Event "87th Spanish Championship 2022"]
[Site "Linares"]
[Date "2022.08.11"]
[Round "1.30"]
[White "Medarde Santiago, Luis Marcos"]
[Black "Garcia Garcia, Samuel"]
[Result "1/2-1/2"]
[ECO "B75"]
[WhiteElo "2330"]
[BlackElo "2084"]
[Annotator "TA"]
[PlyCount "47"]
[EventDate "2022.08.11"]
[EventType "swiss"]
[EventCountry "ESP"]
[SourceTitle "playchess.com"]
[Source "ChessBase"]
[SourceQuality "1"]
[TimeControl "5400+30"]

{[%evp 21,47,29,27,21,27,0,14,0,0,0,0,0,0,0,0,-86,0,0,0,-74,0,0,0,-66,0,0,0,-66]} 1. e4 {[%emt 0:00:06]} c5 {[%emt 0:00:12]} 2. Nf3 {[%emt 0:01:07]} d6 {[%emt 0:00:11]} 3. d4 {[%emt 0:00:06]} cxd4 {[%emt 0:00:14]} 4. Nxd4 {[%emt 0:00:06]} Nf6 {[%emt 0:00:13]} 5. Nc3 {[%emt 0:00:20]} g6 {[%emt 0:00:15]} 6. Be3 {[%emt 0:00:25]} Bg7 {[%emt 0:00:09]} 7. f3 {[%emt 0:00:14]} Nc6 {[%emt 0:00:09]} 8. Bc4 {[%emt 0:01:29]} O-O {[%emt 0:01:45]} 9. Bb3 {[%emt 0:01:18]} Bd7 {[%emt 0:00:38]} 10. h4 {[%emt 0:00:37]} h5 {[%emt 0:02:26][%cal Bh7h5,Bh5g4,Bg4f3][%mdl 32]} 11. Qd2 {[%emt 0:00:50]} Rc8 {[%emt 0:01:53]} 12. Nxc6 {[%emt 0:02:08] B77: Sicilian Dragon: Yugoslav Attack, 9 Bc4 sidelines.} bxc6 {[%emt 0:02:22]} 13. g4 {[%emt 0:00:14] is the legacy move (13.Bh6).} ({Much worse is} 13. Bxa7 c5 14. a4 Qc7 $17) 13... hxg4 {[%emt 0:03:38]} 14. h5 {[%emt 0:00:36]} Nxh5 {[%emt 0:02:32]} ({Don't take} 14... gxh5 15. e5 Nd5 16. Bh6 $16) 15. O-O-O {[%emt 0:00:54] [#]} d5 $146 {[%emt 0:04:50]} ({Predecessor:} 15... c5 16. Bc4 Rb8 17. fxg4 Bxg4 18. Rdg1 Qd7 19. Rh4 Be6 20. Bxe6 Qxe6 21. Rxh5 Qc4 {1-0 (42) Juhasz,B (2223)-Alboredo,J (2182) Chess.com INT 2020}) 16. exd5 {[%emt 0:10:58]} gxf3 {[%emt 0:02:00]} 17. Bh6 {[%emt 0:13:03]} e5 $1 {[%emt 0:09:22]} 18. Qe3 {[%emt 0:24:42] [#]} (18. Kb1 $11) 18... Qb6 {[%emt 0:12:12]} (18... Qf6 $1 $17 {...Bxh6 is the strong threat.} 19. Kb1 Bxh6 20. Qxh6 Qg7) 19. Qg5 $11 {[%emt 0:06:18]} Qd8 {[%emt 0:04:01]} (19... Bf6 $11 20. Qd2 {[#]} c5 $1 21. Bxf8 Kxf8) 20. Qe3 $1 $17 {[%emt 0:00:21][%csl LRa7,LRf3] Hoping for dxc6.} Qb6 {[%emt 0:03:01]} (20... Qf6 $5 {[%cal Rg7h6]} 21. Kb1 Qf5 $15) 21. Qg5 {[%emt 0:06:39] And now Bxg7 would win.} Qd8 {[%emt 0:02:07]} 22. Qe3 $1 {[%emt 0:11:18] Threatens to win with dxc6.} Qb6 {[%emt 0:00:31] White must now prevent ...Qxe3+.} (22... Qf6 $5 {[%cal Rg7h6]} 23. Kb1 Bxh6 24. Qxh6 Qg7 $15) 23. Qg5 {[%emt 0:06:58] Strongly threatening Bxg7.} Qd8 {[%emt 0:00:11] aiming for ...Kh7.} 24. Qe3 $1 {[%csl LRa7,LRf3] Weighted Error Value: White=0.11 (very precise) /Black=0.17 (very precise)} 1/2-1/2

[Event "87th Spanish Championship 2022"]
[Site "Linares"]
[Date "2022.08.11"]
[Round "1.31"]
[White "Garcia Gonzalez, Omar"]
[Black "Vega Gutierrez, Sabrina"]
[Result "0-1"]
[ECO "B80"]
[WhiteElo "2094"]
[BlackElo "2366"]
[Annotator "TA"]
[PlyCount "106"]
[EventDate "2022.08.11"]
[EventType "swiss"]
[EventCountry "ESP"]
[SourceTitle "playchess.com"]
[Source "ChessBase"]
[SourceQuality "1"]
[TimeControl "5400+30"]

{[%evp 10,106,33,0,16,25,30,3,36,0,0,0,0,-6,0,0,0,-43,0,-68,-68,-69,-59,-64,-64,-58,-46,-69,-72,-83,-53,-87,-79,-116,-108,-118,-112,-140,-142,-141,-132,-146,-142,-152,-148,-157,-149,-208,-195,-288,-259,-383,-286,-395,-342,-400,-398,-323,-318,-372,-330,-756,-764,-779,-697,-783,-782,-624,-616,-581,-764,-820,-616,-689,-620,-619,-521,-906,-858,-791,-764,-440,-394,-1571,-1318,-4145,-3057,-2071,-2041,-5704,-2183,-29976,-29975,-29975,-29970,-29981,-29981,-29980,-29979]} 1. e4 {[%emt 0:00:04]} c5 {[%emt 0:00:07]} 2. Nf3 {[%emt 0:00:06]} e6 {[%emt 0:00:21]} 3. d4 {[%emt 0:00:07]} cxd4 {[%emt 0:00:05]} 4. Nxd4 {[%emt 0:00:08]} Nf6 {[%emt 0:00:04]} 5. Nc3 {[%emt 0:00:13]} d6 {[%emt 0:00:22]} 6. Bg5 {[%emt 0:00:23]} h6 {[%emt 0:02:35] B80: Sicilian Scheveningen: 6 g3 and 6 Be3, including English Attack.} 7. Be3 {[%emt 0:05:12]} Be7 {[%emt 0:02:20] [#]} 8. g4 $146 {[%emt 0:05:16]} ({Predecessor:} 8. f3 Nc6 9. Qd2 O-O 10. O-O-O d5 11. Qe1 Bb4 12. a3 Ba5 13. Nb3 Bxc3 14. Qxc3 {1-0 (32) Garcia Moral Garcia,J (2305)-Sanjuan Garcia,M (2022) Linares 2017}) 8... Nc6 {[%emt 0:00:27] The position is equal.} 9. h3 {[%emt 0:03:27]} d5 {[%emt 0:05:43]} 10. Bg2 {[%emt 0:08:53]} Bb4 {[%emt 0:05:31]} 11. exd5 {[%emt 0:11:57]} Nxd5 {[%emt 0:01:45]} 12. Nxc6 {[%emt 0:02:02]} bxc6 {[%emt 0:00:06]} 13. Bd2 {[%emt 0:06:53]} (13. O-O $5 {[%cal Rc3d5]}) 13... Ba6 {[%emt 0:06:45]} (13... Rb8 $5 {[%cal Rc8a6]}) 14. a3 {[%emt 0:12:19]} ({Better is} 14. Nxd5 $11 Bxd2+ 15. Qxd2 cxd5 16. O-O-O) 14... Bxc3 {[%emt 0:07:02]} (14... Be7 {is more complex.} 15. Bf1 Bxf1 16. Kxf1 O-O) 15. Bxc3 {[%emt 0:02:09]} Nxc3 {[%emt 0:00:50]} (15... O-O {seems wilder.} 16. h4 Qb6 17. Bxd5 exd5 18. Qd4 Rae8+) 16. Qxd8+ {[%emt 0:11:33]} Rxd8 {[%emt 0:02:33]} 17. bxc3 {[%emt 0:01:04]} Ke7 {[%emt 0:00:44]} 18. Rd1 {[%emt 0:04:29]} c5 {[%emt 0:00:51]} 19. Bf3 Bc4 {[%emt 0:03:43]} 20. Rxd8 {[%emt 0:14:53] White is on the road to losing.} Rxd8 $15 {[%emt 0:00:10][%mdl 4096] Endgame KRB-KRB} ({Don't play} 20... Kxd8 $6 21. Kd2 $11) 21. Be2 {[%emt 0:00:30]} Bd5 {[%emt 0:00:30]} 22. Rg1 {[%emt 0:00:30]} Be4 {[%emt 0:00:30]} 23. Bd1 {[%emt 0:00:30]} g5 $1 {[%emt 0:00:30]} 24. Rg3 {[%emt 0:00:30]} c4 {[%emt 0:00:30] 0x0.001681e9bc33dp-1022s more active pieces.} 25. Re3 {[%emt 0:00:30]} Bd5 {[%emt 0:00:30]} 26. Bf3 {[%emt 0:00:30]} Bxf3 {[%emt 0:00:30]} 27. Rxf3 $17 {[%emt 0:00:30] [#] KR-KR} Rd5 $1 {[%emt 0:00:30]} 28. Re3 {[%emt 0:00:30] [#] Inhibits Re5.} (28. h4 $17) 28... Kd6 $1 $19 {[%emt 0:00:30]} 29. Rf3 {[%emt 0:00:30]} (29. Rg3 {was necessary.}) 29... f5 {[%emt 0:22:48][%cal Bf7f5,Bf5f4][%mdl 32]} 30. Ke2 {[%emt 0:08:50]} (30. a4 $142) 30... f4 31. h4 {[%emt 0:00:19]} Ra5 {[%emt 0:06:09]} 32. hxg5 hxg5 {[%emt 0:00:05]} 33. Rh3 {[%emt 0:00:27]} Rxa3 {[%emt 0:01:01]} 34. Kd2 {[%emt 0:00:10]} Ra5 {[%emt 0:00:59]} 35. Rh8 $2 {[%emt 0:00:30]} (35. Ke2 Re5+ 36. Kf3) 35... Re5 {[%emt 0:05:15]} 36. Rf8 {[%emt 0:00:46]} Kc7 {[%emt 0:01:31]} 37. Rf7+ {[%emt 0:00:25]} Kb6 {[%emt 0:00:15]} 38. Rf8 {[%emt 0:00:18]} a5 {[%emt 0:00:06][%cal Ba7a5,Ba5a4][%mdl 32] aiming for ...a4.} 39. Rb8+ {[%emt 0:00:53]} Kc7 {[%emt 0:00:22]} 40. Rf8 {[%emt 0:00:15]} Kb7 {[%emt 0:00:15]} 41. Rf7+ {[%emt 0:00:13]} Kb6 {[%emt 0:00:05] And now ...a4 would win.} 42. Rf8 {[%emt 0:00:17]} a4 {[%emt 0:00:46] Strongly threatening ...a3.} 43. Rb8+ {[%emt 0:01:18]} Ka7 {[%emt 0:11:48]} 44. Rb4 {[%emt 0:00:16]} a3 {[%emt 0:00:20]} 45. Ra4+ {[%emt 0:01:51]} Kb6 {[%emt 0:00:08] Hoping for ...f3.} 46. Rxa3 $2 {[%emt 0:00:23]} (46. f3) 46... f3 {[%emt 0:00:08] Threatens to win with ...Re2+.} 47. Ra8 {[%emt 0:00:38]} Re2+ {[%emt 0:00:26]} 48. Kd1 {[%emt 0:00:04]} e5 {[%emt 0:04:39]} 49. Rg8 {[%emt 0:00:39]} Kc6 {[%emt 0:04:04]} 50. Rxg5 {[%emt 0:00:09]} Kd5 {[%emt 0:00:03] Black mates.} 51. Rg8 {[%emt 0:00:40]} Rxf2 {[%emt 0:00:05]} 52. g5 {[%emt 0:00:58]} Rg2 {[%emt 0:01:14]} 53. Rf8 {[%emt 0:00:30]} Ke4 {Weighted Error Value: White=0.75/Black=0.10 (very precise)} 0-1

[Event "87th Spanish Championship 2022"]
[Site "Linares"]
[Date "2022.08.11"]
[Round "1.32"]
[White "Macias Pino, Diego"]
[Black "Vidal del Rio, Manuel"]
[Result "1-0"]
[ECO "C58"]
[WhiteElo "2355"]
[BlackElo "2092"]
[Annotator "TA"]
[PlyCount "55"]
[EventDate "2022.08.11"]
[EventType "swiss"]
[EventCountry "ESP"]
[SourceTitle "playchess.com"]
[Source "ChessBase"]
[SourceQuality "1"]
[TimeControl "5400+30"]

{[%evp 14,55,25,5,63,69,91,92,97,91,96,94,157,0,0,0,0,0,152,153,158,40,189,185,224,197,414,404,471,481,490,499,614,633,658,637,648,481,764,642,1085,1060,1026,808]} 1. e4 {[%emt 0:00:05]} e5 {[%emt 0:00:26]} 2. Nf3 {[%emt 0:01:18]} Nc6 {[%emt 0:00:23]} 3. Bc4 {[%emt 0:00:04]} Nf6 {[%emt 0:00:21]} 4. Ng5 {[%emt 0:00:04]} d5 {[%emt 0:00:22]} 5. exd5 {[%emt 0:00:05]} Na5 {[%emt 0:00:08]} 6. Bb5+ {[%emt 0:00:04]} c6 {[%emt 0:00:10]} 7. dxc6 {[%emt 0:00:03]} bxc6 {[%emt 0:00:13]} 8. Qf3 {[%emt 0:01:13] 8.Bd3 is a critical line.} h6 {[%emt 0:00:20] [#] C58: Two Knights: 4 Ng5 d5 5 exd5 Na5 sidelines.} ({Black should try} 8... Be7 $11) 9. Ne4 $1 $14 {[%emt 0:00:06]} cxb5 {[%emt 0:00:08]} (9... Nd5 10. Be2) 10. Nxf6+ {[%emt 0:00:05][%mdl 64] Discovered Attack} gxf6 {[%emt 0:00:08] White is better.} 11. Qxa8 {[%emt 0:00:04]} Qd7 {[%emt 0:00:13]} 12. Qf3 {[%emt 0:09:24]} Bb7 {[%emt 0:00:28] [#]} (12... Nc6 $142) 13. Qg3 $146 {[%emt 0:03:35]} (13. Qxf6 $16 Rg8 14. d3 (14. Qxe5+ Be7 $14) 14... Bxg2 15. Rg1 (15. Qxe5+ Be7 $14)) ({Predecessor:} 13. Qxf6 Rg8 14. Qxe5+ Be7 15. Nc3 Nc6 16. Qxb5 Nd4 17. Qxd7+ Kxd7 18. Rb1 Bxg2 19. Rf1 Nxc2+ {0-1 (27) Klyashtorny,V (2403)-Shahade,G (2476) Chess.com INT 2021}) 13... Nc6 $11 {[%emt 0:01:17] Strongly threatening ...Nd4.} 14. c3 {[%emt 0:00:22] Prevents Nd4.} h5 $1 {[%emt 0:02:00]} 15. f3 {[%emt 0:02:18]} Ne7 $2 {[%emt 0:13:47]} (15... b4 $11) 16. Qf2 $16 {[%emt 0:01:59]} Rg8 {[%emt 0:06:49]} 17. O-O {[%emt 0:03:25]} ({Better is} 17. d4 $16) 17... Nf5 {[%emt 0:12:23] Black cannot hold the game after this.} (17... e4 $1 $14 18. Qe2 (18. Qxa7 $2 exf3 19. g3 h4 $19) 18... exf3 19. Rxf3 Bxf3 20. Qxf3 Qe6) 18. d4 $1 $18 {[%emt 0:01:40]} (18. Qxa7 $2 Rxg2+ $3 {[%mdl 512]} 19. Kxg2 Bxf3+ $1 {[%mdl 512]} 20. Kxf3 (20. Rxf3 $2 Nh4+ 21. Kf1 Qxa7 $19) 20... Qxa7 $19) 18... exd4 {[%emt 0:17:59]} 19. Nd2 {[%emt 0:11:49][%cal Bb1d2,Bd2e4,Be4g3][%mdl 32]} Ne3 $2 {[%emt 0:11:38] [#]} (19... Bd6 {was called for.}) 20. Ne4 $1 {[%emt 0:00:41]} ({And not} 20. Re1 Kd8 21. g3 h4 $11) 20... Be7 {[%emt 0:22:12]} (20... Bxe4 $2 21. Bxe3 dxe3 22. Qxe3 $18) 21. Bxe3 {[%emt 0:00:12] White is clearly winning.} dxe3 {[%emt 0:00:07]} 22. Qxe3 {[%emt 0:00:05] Hoping for Nxf6+.} Qc6 {[%emt 0:00:23]} 23. Rad1 {[%emt 0:00:41] aiming for Nd6+.} ({Weaker is} 23. Qxa7 f5 $16) 23... Kf8 {[%emt 0:01:26]} 24. Qh6+ {[%emt 0:00:21]} Rg7 {[%emt 0:00:08]} 25. Ng3 {[%emt 0:00:14]} Kg8 {[%emt 0:00:12]} (25... Qc5+ $142 26. Kh1 Qg5 27. Qxh5 Bc8) 26. Kh1 {[%emt 0:00:48] Threatening mate with Nf5.} Qc5 {[%emt 0:04:35] Prevents Nf5.} 27. Rfe1 {[%emt 0:00:39][%cal Od1d8] White wants to mate with Rd8+!} Rg6 {[%emt 0:03:52]} 28. Qe3 {[%emt 0:00:49] Weighted Error Value: White=0.33/Black=0.59} 1-0

[Event "87th Spanish Championship 2022"]
[Site "Linares"]
[Date "2022.08.11"]
[Round "1.33"]
[White "Yuste Valenzuela, Alejandro"]
[Black "Fernandez Garcia, Jose Luis"]
[Result "1/2-1/2"]
[ECO "C47"]
[WhiteElo "2022"]
[BlackElo "2362"]
[Annotator "TA"]
[PlyCount "148"]
[EventDate "2022.08.11"]
[EventType "swiss"]
[EventCountry "ESP"]
[SourceTitle "playchess.com"]
[Source "ChessBase"]
[SourceQuality "1"]
[TimeControl "5400+30"]

{[%evp 12,147,8,2,17,-38,-28,-59,-60,-134,-132,-137,-127,-170,-125,-104,-117,-108,-107,-127,-116,-125,-132,-108,-109,-166,-138,-197,-110,-94,0,-195,-179,-187,-183,-172,-112,-117,-96,-96,-98,-96,-83,-78,0,0,0,-97,-87,-99,-115,-109,-40,-222,-208,-225,-220,-214,-201,-220,-222,-218,-212,-227,-206,-311,-297,-344,-352,-345,-361,-768,-760,-554,-268,-720,-687,-1746,-1695,-29969,-29969,-29970,-29971,-29969,-29972,-29976,-29972,-29971,-29970,-29969,-29969,-29971,-29966,-6621,-388,-346,-385,-377,-377,-377,-364,-364,-244,-333,-330,-315,-300,-67,-235,-198,-147,-184,-119,-106,0,0,0,0,0,0,0,0,0,0,0,0,0,0,0,0,0,0,0,0,0,0,0,0]} 1. e4 {[%emt 0:00:03]} e5 {[%emt 0:05:26]} 2. Nf3 {[%emt 0:00:11]} Nc6 {[%emt 0:00:06]} 3. Nc3 {[%emt 0:00:31]} Nf6 {[%emt 0:03:05]} 4. g3 {[%emt 0:00:41]} d5 {[%emt 0:00:35]} 5. exd5 {[%emt 0:01:00]} Nxd5 {[%emt 0:00:06]} 6. Bg2 {[%emt 0:00:40]} Nxc3 {[%emt 0:00:27]} 7. bxc3 {[%emt 0:00:29]} Bd6 {[%emt 0:02:00] C47: Scotch Four Knights and Four Knights with 4 g3.} 8. h3 {[%emt 0:07:02]} ({Better is} 8. O-O $11) 8... O-O {[%emt 0:05:16]} 9. O-O {[%emt 0:03:04]} e4 $1 {[%emt 0:02:15] Black is slightly better.} 10. Nd4 {[%emt 0:09:12]} (10. Nh2 $15) 10... Nxd4 $17 {[%emt 0:01:25]} 11. cxd4 {[%emt 0:00:07] [#]} Bxg3 $1 {[%emt 0:01:13][%mdl 512] [#]} 12. c3 $146 {[%emt 0:24:40]} (12. d3 exd3) ({Predecessor:} 12. fxg3 Qxd4+ {0-1 (12) Pyatin,A (2074)-Tsapko,D (2073) St Petersburg 2007}) 12... Bf4 {[%emt 0:02:58]} 13. d3 {[%emt 0:05:38]} Bxc1 {[%emt 0:01:21]} 14. Rxc1 {[%emt 0:00:23]} Qg5 {[%emt 0:07:53]} 15. dxe4 {[%emt 0:05:15]} Bxh3 $1 {[%emt 0:00:09][%csl Gh3][%cal Rg5g2]} 16. Qf3 {[%emt 0:00:08]} Bxg2 {[%emt 0:00:14]} 17. Qxg2 {[%emt 0:00:04]} Qf4 {[%emt 0:00:33]} 18. Rce1 {[%emt 0:05:59]} (18. f3 $17) 18... Rae8 $19 {[%emt 0:00:34]} 19. Qh2 {[%emt 0:03:45]} (19. Re3 $17) 19... Qg4+ {[%emt 0:02:57]} (19... Rxe4 $19 {...Qg5+ is the strong threat.} 20. Qxf4 Rxf4) 20. Qg2 $17 {[%emt 0:00:23]} Qf4 {[%emt 0:08:51]} (20... Qxg2+ $17 21. Kxg2 Re6) 21. Qh2 $1 $19 {[%emt 0:00:56]} Rxe4 {[%emt 0:09:33] Threatens to win with ...Qg5+.} 22. Qxf4 {[%emt 0:02:33]} Rxf4 {[%emt 0:00:27][%mdl 4096] Endgame KRR-KRR} 23. Re7 {[%emt 0:00:30]} Rg4+ {[%emt 0:03:32]} (23... Rc8 $1 $19 24. Rfe1 Kf8) 24. Kh2 $17 {[%emt 0:00:15]} f5 {[%emt 0:00:12]} 25. Rfe1 {[%emt 0:05:18]} Rf6 {[%emt 0:09:27][%cal Rf6h6]} 26. Re8+ {[%emt 0:00:35]} Kf7 $1 {[%emt 0:00:08][%cal Rf6h6]} 27. R8e7+ {[%emt 0:00:06]} Kf8 {[%emt 0:00:27][%cal Rf6h6]} 28. Re8+ {[%emt 0:00:05]} Kf7 {[%emt 0:00:02][%cal Rf6h6]} 29. R8e7+ $1 {[%emt 0:00:06]} Kg6 $1 {[%emt 0:00:10]} 30. f3 {[%emt 0:01:02]} Rg5 {[%emt 0:01:51]} 31. Rxc7 {[%emt 0:01:50]} h6 {[%emt 0:00:51]} ({Black should play} 31... Ra6 $17 32. Re2 b5) 32. Rg1 $2 {[%emt 0:07:51]} (32. Rxb7 $15 Rc6 33. Rb3 (33. Rxa7 Rxc3 34. Ree7 Rxf3 $17)) 32... Rxg1 $19 {[%emt 0:02:30]} 33. Kxg1 {[%emt 0:00:05] KR-KR} Rc6 {[%emt 0:00:14]} 34. Rxb7 {[%emt 0:07:00]} Rxc3 {[%emt 0:00:58]} 35. Kf2 {[%emt 0:00:12]} Rc2+ {[%emt 0:02:19]} 36. Ke3 {[%emt 0:00:07]} Rxa2 {[%emt 0:00:02]} 37. Rc7 {[%emt 0:01:02]} Ra5 {[%emt 0:09:56]} 38. Rc6+ {[%emt 0:01:07]} (38. Kf4 $142) 38... Kg5 {[%emt 0:00:52]} 39. f4+ {[%emt 0:02:06]} Kh5 {[%emt 0:00:18]} 40. Rc5 {[%emt 0:00:05]} Ra3+ 41. Ke2 $2 (41. Kd2 Kg4 42. d5) 41... Kg4 {[%emt 0:01:28]} 42. d5 {[%emt 0:00:51]} Ra6 {[%emt 0:00:58]} (42... Kxf4 $142 43. d6 Re3+ 44. Kd2 Re8 45. Rc4+ Ke5) 43. Ke3 $2 {[%emt 0:02:44]} (43. Rc6 Ra5 44. Rg6+ Kxf4 45. d6) 43... g5 {[%emt 0:02:55][%cal Bg7g5,Bg5f4,Bf4f3][%mdl 32]} 44. Rc6 {[%emt 0:02:19]} gxf4+ {[%emt 0:02:25]} 45. Ke2 {[%emt 0:03:51]} f3+ {[%emt 0:01:38]} 46. Ke1 {[%emt 0:00:17]} Ra1+ {[%emt 0:00:11]} 47. Kf2 {[%emt 0:00:10]} Ra2+ {[%emt 0:00:16]} 48. Ke1 {[%emt 0:00:10]} Re2+ {[%emt 0:01:29]} 49. Kf1 {[%emt 0:00:18]} Rd2 {[%emt 0:02:38]} 50. Ra6 {[%emt 0:00:16]} Kg3 {[%emt 0:01:40][%cal Rd2d1]} 51. Rg6+ {[%emt 0:00:05]} Kf4 {[%emt 0:00:09]} 52. Rxh6 {[%emt 0:00:35]} Rxd5 $2 {[%emt 0:00:14]} (52... a5 53. Rd6 a4) 53. Ra6 {[%emt 0:00:07]} Rd1+ {[%emt 0:06:27]} 54. Kf2 {[%emt 0:00:16]} Rd2+ {[%emt 0:00:01]} 55. Kf1 {[%emt 0:00:12] [#]} Rd7 {[%emt 0:00:43]} ({But not} 55... Kg3 $2 56. Rg6+ Kf4 57. Ra6 $19) 56. Kf2 {[%emt 0:00:05]} Rf7 {[%emt 0:00:25]} ({Wrong is} 56... Rd2+ $2 57. Kf1 $19) 57. Ra4+ {[%emt 0:00:08] [#]} Ke5 $1 {[%emt 0:00:01]} 58. Kxf3 {[%emt 0:00:34]} Kd5 {[%emt 0:00:27]} 59. Kf4 {[%emt 0:00:59]} Kc5 $2 {[%emt 0:00:06]} (59... Kc6 $15 60. Ra1 Kc5 61. Rc1+ Kb4 62. Rb1+ Ka4 63. Ra1+ Kb4 64. Rb1+ Kc3) 60. Ra1 {[%emt 0:00:09]} Kb6 {[%emt 0:02:53]} (60... Kb5 $19 {aiming for ...a5.} 61. Rb1+ Kc4 62. Rc1+ Kb4 63. Rb1+ Kc4) 61. Rb1+ $17 {[%emt 0:00:13]} Kc7 {[%emt 0:00:09]} ({Black should try} 61... Ka5 $19 {And now ...a6 would win.} 62. Rf1 Kb6 63. Rb1+ Kc5) 62. Ra1 {[%emt 0:00:05]} Kb8 {[%emt 0:00:02]} (62... Kb7 $17 {White must now prevent ...a6.} 63. Rb1+ Kc6 64. Rc1+ Kb6 65. Rb1+ Kc6 66. Rc1+ Kb6 67. Rb1+) 63. Rb1+ $11 {[%emt 0:00:17] The position is equal.} Rb7 {[%emt 0:01:55]} 64. Rxb7+ {[%emt 0:00:53]} Kxb7 {[%emt 0:00:01]} 65. Kxf5 {[%emt 0:00:07] KP-K} Kc6 {[%emt 0:00:01][%cal Bb7c6,Bc6c5,Bc5b4,Bb4a3,Ba3b3][%mdl 32]} 66. Ke4 {[%emt 0:00:15]} Kc5 {[%emt 0:00:01]} 67. Kd3 {[%emt 0:00:07]} Kb4 {[%emt 0:00:08] ( -> ...Kb3)} 68. Kc2 {[%emt 0:00:02]} Ka3 {[%emt 0:00:06]} 69. Kb1 {[%emt 0:00:04]} Kb3 {[%emt 0:00:04]} 70. Ka1 {[%emt 0:00:07]} a5 {[%emt 0:00:03][%cal Ba7a5,Ba5a4,Ba4a3,Ba3a2][%mdl 32]} 71. Kb1 {[%emt 0:00:02]} a4 {[%emt 0:00:03]} 72. Ka1 {[%emt 0:00:04]} a3 {[%emt 0:00:06]} 73. Kb1 {[%emt 0:00:03]} a2+ {[%emt 0:00:06]} 74. Ka1 {[%emt 0:00:02]} Ka3 {White happily takes the draw.  Weighted Error Value: White=0.74/Black=0.18 (very precise)} 1/2-1/2

[Event "87th Spanish Championship 2022"]
[Site "Linares"]
[Date "2022.08.11"]
[Round "1.34"]
[White "Serarols Mabras, Bernat"]
[Black "Gomez Arce, Alejandro"]
[Result "1-0"]
[ECO "A50"]
[WhiteElo "2357"]
[BlackElo "2111"]
[Annotator "TA"]
[PlyCount "60"]
[EventDate "2022.08.11"]
[EventType "swiss"]
[EventCountry "ESP"]
[SourceTitle "playchess.com"]
[Source "ChessBase"]
[SourceQuality "1"]
[TimeControl "5400+30"]

{[%evp 14,60,68,66,84,82,85,80,106,77,77,70,86,73,226,221,231,220,303,299,338,341,333,287,331,337,320,285,515,506,593,583,600,586,789,773,919,879,1191,1175,1867,1855,29995,29996,29996,29997,29997,29998,29998]} 1. d4 {[%emt 0:00:04]} Nf6 {[%emt 0:00:06]} 2. c4 {[%emt 0:00:43]} b6 {[%emt 0:00:26]} 3. Nc3 {[%emt 0:04:01]} Bb7 {[%emt 0:00:51]} 4. Nf3 {[%emt 0:00:09]} g6 {[%emt 0:03:04]} 5. Qc2 {[%emt 0:04:00]} Bg7 {[%emt 0:02:23]} 6. e4 {[%emt 0:01:04]} d6 {[%emt 0:04:43]} 7. Be2 {[%emt 0:01:38]} O-O {[%emt 0:00:33]} 8. O-O {[%emt 0:00:15]} Nfd7 {[%emt 0:21:24] E91: King's Indian: Classical: 6 Be2, unusual replies including 6...c5 and 6...Bg4.} 9. Be3 {[%emt 0:04:17]} e5 {[%emt 0:03:47] [#]} 10. d5 $146 {[%emt 0:05:04]} ({Predecessor:} 10. Rad1 Nc6 11. d5 Ne7 12. Qc1 Re8 13. Bd3 Kh8 14. Ng5 Rf8 15. f4 h6 16. Nf3 exf4 17. Bxf4 {1-0 (42) Dimitriadi,A (2015)-Kasioura,F (2005) Athens 1997}) 10... h6 {[%emt 0:05:46] White is better.} 11. g3 {[%emt 0:04:55] White is much more active.} a5 {[%emt 0:09:30]} 12. a3 {[%emt 0:15:33]} Na6 {[%emt 0:01:39]} 13. Rab1 {[%emt 0:01:35]} f5 $2 {[%emt 0:09:23] [#]} (13... Nf6 $16) 14. exf5 $18 {[%emt 0:01:24]} gxf5 {[%emt 0:00:20]} 15. Nh4 {[%emt 0:01:58]} Qf6 {[%emt 0:02:09]} 16. f4 {[%emt 0:12:37]} e4 {[%emt 0:04:16]} 17. Nb5 {[%emt 0:04:20][%cal Bc3b5,Bb5d4,Bd4f5][%mdl 32]} Qf7 {[%emt 0:14:27]} 18. b4 {[%emt 0:06:10] aiming for Nd4.} axb4 {[%emt 0:00:16]} 19. axb4 {[%emt 0:00:07]} Bc8 {[%emt 0:03:56]} 20. Nd4 {[%emt 0:06:51]} Ndb8 $2 {[%emt 0:03:28]} (20... Ndc5 21. bxc5 bxc5) 21. Qd1 {[%emt 0:01:53]} Bd7 {[%emt 0:06:17]} 22. Bh5 {[%emt 0:01:53]} Qf6 {[%emt 0:00:06]} 23. Bg6 {[%emt 0:01:25]} Ra7 {[%emt 0:02:05]} 24. Bxf5 {[%emt 0:03:46]} Bxf5 {[%emt 0:00:41]} 25. Ndxf5 {[%emt 0:03:22] [#] Strongly threatening Bd4.} Qc3 26. Rc1 {[%emt 0:02:54]} Qxb4 {[%emt 0:00:46]} 27. Nxg7 {[%emt 0:00:21] White wants to mate with Qg4.} Kxg7 {[%emt 0:00:13]} 28. Qg4+ {[%emt 0:00:11] White mates.} Kf7 {[%emt 0:00:24]} 29. Qe6+ {[%emt 0:00:07]} Kg7 {[%emt 0:00:06]} 30. Qg6+ {[%emt 0:00:11]} Kh8 {[%emt 0:00:05] Black did not feel at home in the position after the opening.  Weighted Error Value: White=0.04 (flawless) /Black=0.81} 1-0